Cogmind - Beta 16 @@@ ROGUE MODE // 2026.01.31 @ 11:02:19 Player: ae Result: Destroyed by DAS Turret with DAS Cannon Performance ------------- Evolutions (0) 0 Regions Visited (3) 600 Robots Destroyed (18) 90 Value Destroyed (245) 245 Prototype IDs (0) 0 Alien Tech Used (0) 0 Bonus (-22) -22 TOTAL SCORE: 913 Bonus ------- Friendly Fire -22 Cogmind --------- Core Integrity 0/250 Matter 297/300 Energy 98/100 System Corruption 0% Temperature Cool (0) Movement Core (50) Location -10/Exiles Parts ------- > --- POWER (1) -------- (None) > --- PROPULSION (2) --- (None) > --- UTILITY (2) ------ Signal Interpreter > --- WEAPON (2) ------- (None) > --- INVENTORY (5) ---- Aluminum Leg Cooling System Sensor Array Field Recycling Unit (0) Grenade Launcher Peak State ------------ > --- POWER ------------ Light Ion Engine > --- PROPULSION ------- Aluminum Leg Aluminum Leg > --- UTILITY ---------- Small Storage Unit Improved Terrain Scanner > --- WEAPON ----------- Light Assault Rifle Light Assault Rifle > --- INVENTORY -------- Ion Engine Light Treads Light Treads Wheel Compact Wheel Cooling System Field Recycling Unit Assault Rifle [Rating: 10] Favorites ----------- Power Light Nuclear Core Engine Light Ion Engine Power Core Light Nuclear Core Propulsion Aluminum Leg Leg Aluminum Leg Utility Small Storage Unit Device Sensor Array Storage Small Storage Unit Processor Signal Interpreter Weapon Light Assault Rifle Ballistic Gun Light Assault Rifle Launcher Grenade Launcher Slashing Weapon Mining Claw Build | -11 -10 -10 -10 ------- Run | Yrd Mat Min Exi Slots Evolved . | . . . . Power . | . . . . Propulsion . | . . . . Utility . | . . . . Weapon . | . . . . Parts Attached 15 | 8 4 3 . Power 2 | 1 . 1 . Engine 1 | 1 . . . Core 1 | . . 1 . Reactor . | . . . . Propulsion 3 | 2 . 1 . Treads . | . . . . Leg 3 | 2 . 1 . Wheel . | . . . . Hover . | . . . . Flight . | . . . . Utility 5 | 3 2 . . Device 2 | 1 1 . . Storage 2 | 2 . . . Processor 1 | . 1 . . Hackware . | . . . . Protection . | . . . . Artifact . | . . . . Weapon 5 | 2 2 1 . Energy Gun . | . . . . Energy Cannon . | . . . . Ballistic Gun 3 | 2 1 . . Ballistic Cannon . | . . . . Launcher 1 | . . 1 . Special Weapon . | . . . . Impact Weapon . | . . . . Slashing Weapon 1 | . 1 . . Piercing Weapon . | . . . . Special Melee Weapon . | . . . . Unidentified Prototypes . | . . . . Parts Lost 4 | . . . 4 Power 1 | . . . 1 Propulsion 2 | . . . 2 Utility . | . . . . Weapon 1 | . . . 1 Highest Loss Streak 4 | . . . 4 To Critical Strikes 1 | . . . 1 Average Backups 7 | 4 7 8 7 Power . | . 1 1 . Propulsion 1 | 3 2 1 1 Utility 2 | . 2 3 3 Weapon 2 | . 1 2 2 Tool/Special . | . . . . Unused Backups 8 | . 2 2 4 Power 1 | . . . 1 Propulsion 5 | . 2 2 1 Utility 2 | . . . 2 Weapon . | . . . . Tool/Special . | . . . . Average Slot Usage (%) 97 | . 94 100 81 Engine 3 | . 14 . . Core 9 | . . 13 11 Leg 27 | . 28 28 22 Device 1 | . 5 . . Storage 13 | . 14 14 11 Processor 11 | . 2 14 14 Ballistic Gun 25 | . 20 27 21 Slashing Weapon 1 | . 7 . . Peak Build Rating 10 | 9 10 10 10 Average Rating 9 | 6 7 9 8 On Entrance 6 | . 9 8 10 Avg Prop Armor Cover (%) 37 | . . . 37 Naked Turns . | . . . . Heaviest Build 15 | 15 12 13 13 Greatest Support 20 | 20 20 20 20 Greatest Overweight (x) 3 | 3 . . 1 Average Overweight (x) . | . . . . Largest Inventory Capacity 8 | 8 8 8 8 Average Capacity 7 | 7 8 8 7 Most Carried 8 | 7 8 8 8 Average Carried 7 | 5 7 8 7 Final Capacity 8 | 8 8 8 5 Final Carried 8 | 6 8 8 5 Class Distribution -------------------- 100% | Mutant Dominant Class ---------------- Mutant | -10/Materials Mutant | -10/Mines Mutant | -10/Exiles Resources | -11 -10 -10 -10 ----------- Run | Yrd Mat Min Exi Matter Collected 501 | 312 50 139 . Remotely . | . . . . Salvage Created 447 | 133 97 217 . Parts 37 | 8 11 18 . Haulers Intercepted . | . . . . Recyclers Shooed 2 | . 2 . . Parts Field Recycled . | . . . . Retrieved Matter . | . . . . Parts Self-Destructed . | . . . . Prevented . | . . . . Parts Restored . | . . . . Kills | -11 -10 -10 -10 ------- Run | Yrd Mat Min Exi Combat Hostiles Destroyed 9 | . 1 8 . Guns 8 | . 1 7 . AOE 1 | . . 1 . Classes Destroyed 8 | 3 4 1 . Worker 2 | 2 . . . Builder 2 | . 1 1 . Tunneler 1 | 1 . . . Recycler 2 | 1 . 1 . Mechanic 1 | . 1 . . Watcher 1 | . 1 . . Swarmer 6 | . . 6 . Grunt 3 | . 1 2 . Best Kill Streak 4 | 2 2 4 . Combat Bots Only 3 | . 1 3 . Max Kills in Single Turn 2 | 1 1 2 . Gunslinging . | . . . . Exploded 1 | . . 1 . Melee . | . . . . Uniques/NPCs Destroyed . | . . . . Combat | -11 -10 -10 -10 -------- Run | Yrd Mat Min Exi Hostile Shots Fired 70 | . 10 29 31 Missed 25 | . 5 11 9 Hits 45 | . 5 18 22 Melee 2 | . . . 2 Projectile 43 | . 5 18 20 Critical Strikes 4 | . . 1 3 Part Disruptions 2 | . . . 2 Damage Taken 726 | . 54 232 440 Core 286 | . 10 60 216 Absorbed by Shields . | . . . . Core Remaining (%) 100 | 100 . . . Volleys Fired 54 | 18 11 24 1 Largest 2 | 2 2 2 2 Hottest 50 | 40 40 50 40 Shots Fired 105 | 36 21 46 2 Gun 104 | 36 21 45 2 Cannon . | . . . . Launcher 1 | . . 1 . Special . | . . . . Kinetic 104 | 36 21 45 2 Thermal . | . . . . Explosive 1 | . . 1 . Electromagnetic . | . . . . Robot Hit Streak 9 | 6 7 9 3 Robot Miss Streak 7 | 7 6 3 . Penetration Max . | . . . . Secondary Targets 1 | . . 1 . Max Gunslinging Chain 1 | . . 1 . Shots Hit Robots 65 | 19 13 31 2 Core Hits 30 | 9 7 13 1 Critical Kills 1 | . . 1 . Critical Parts Destroyed 1 | 1 . . . Critical Strikes 2 | 1 . 1 . Destroy 2 | 1 . 1 . Melee Attacks 22 | . 22 . . Impact . | . . . . Slashing 22 | . 22 . . Piercing . | . . . . Sneak Attacks 3 | . 3 . . Combat Hostiles . | . . . . Follow-up Attacks . | . . . . Damage Inflicted 814 | 138 239 415 22 Guns 552 | 138 77 315 22 Cannons . | . . . . Explosions 100 | . . 100 . Melee 158 | . 158 . . Ramming 4 | . 4 . . Kinetic 552 | 138 77 315 22 Thermal . | . . . . Explosive 100 | . . 100 . Electromagnetic . | . . . . Impact . | . . . . Slashing 158 | . 158 . . Piercing . | . . . . Highest Corruption . | . . . . Average Corruption . | . . . . Corruption Purged . | . . . . Corruption Blocked . | . . . . Overload Shots . | . . . . Overflow Damage 61 | . 51 10 . Projectiles . | . . . . Explosions 10 | . . 10 . Melee 51 | . 51 . . Knockbacks . | . . . . Impact . | . . . . Kinetic . | . . . . Secondary . | . . . . Self-Inflicted Damage 24 | . . 24 . Shots 1 | . . 1 . Rammed . | . . . . Targets Rammed 1 | . 1 . . Kicked 1 | . 1 . . Crushed . | . . . . Highest Temperature 24 | . 6 18 24 Average Temperature 7 | . 6 6 14 Received Heat Transfer 244 | . 33 111 100 Siege Activations . | . . . . Martial Activations . | . . . . Shielding Activations . | . . . . Robots Disrupted . | . . . . Combat Hostiles . | . . . . Robots Corrupted . | . . . . Combat Hostiles . | . . . . Parts Fried . | . . . . Impact Corruptions . | . . . . Robots Melted . | . . . . Combat Hostiles . | . . . . Parts Melted . | . . . . Heat Transferred . | . . . . Parts Sabotaged . | . . . . Parts Stolen . | . . . . Parts Stripped . | . . . . Power Chain Reactions . | . . . . Alert | -11 -10 -10 -10 ------- Run | Yrd Mat Min Exi Maximum Alert Level . | . . . . Low Security (%) 100 | 100 100 100 . Level 1 . | . . . . Level 2 . | . . . . Level 3 . | . . . . Level 4 . | . . . . Level 5 . | . . . . High Security . | . . . . Max Security . | . . . . Peak Influence 97 | 5 20 97 . Initial 2 | . . 2 . Average 12 | 1 3 16 . Influence Increases 318 | 20 91 207 . Destroy 0b10 Robot/C 180 | . 20 160 . Destroy 0b10 Robot/NC 45 | 20 15 10 . Destroy Leader 42 | . 12 30 . Successful Hack 19 | . 19 . . Disable Machine 15 | . 15 . . Destroy Structure 17 | . 10 7 . Influence Decreases 318 | 20 84 185 29 Entered New Map 34 | . . 5 29 Time Decay 284 | 20 84 180 . Squads Dispatched 2 | . 2 . . Investigation 1 | . 1 . . Extermination . | . . . . Reinforcement 1 | . 1 . . Assault . | . . . . Garrison . | . . . . Intercept . | . . . . Searches Triggered . | . . . . Construction Impeded . | . . . . Haulers Reinforced . | . . . . Active Scanning Responses . | . . . . Cargo Convoy Interrupts . | . . . . Stealth | -11 -10 -10 -10 --------- Run | Yrd Mat Min Exi Distress Signals 2 | . 2 . . Communications Jammed . | . . . . Distress Signals . | . . . . Times Spotted 27 | . 9 8 10 Peak Tracking Total 12 | . 4 3 12 Tactical Retreats . | . . . . Traps | -11 -10 -10 -10 ------- Run | Yrd Mat Min Exi Traps Triggered 1 | . 1 . . Indirectly . | . . . . Trap Hack Attempts . | . . . . Triggered . | . . . . Disarmed . | . . . . Reprogrammed . | . . . . Reused . | . . . . Traps Extracted . | . . . . Installed . | . . . . Triggered . | . . . . Machines | -11 -10 -10 -10 ---------- Run | Yrd Mat Min Exi Machines Disabled 1 | . 1 . . Max in Single Turn 1 | . 1 . . Machines Repaired . | . . . . Machines Dismantled . | . . . . Machines Sabotaged . | . . . . Overloaded Fab Kills . | . . . . Hacking | -11 -10 -10 -10 --------- Run | Yrd Mat Min Exi Machines Accessed 2 | . 2 . . Terminals 1 | . 1 . . Fabricators . | . . . . Repair Stations 1 | . 1 . . Recycling Units . | . . . . Scanalyzers . | . . . . Garrison Access . | . . . . Total Hacks 8 | . 8 . . Successful 2 | . 2 . . Failed 6 | . 6 . . Catastrophic 1 | . 1 . . Database Lockouts . | . . . . Manual . | . . . . Terminals 6 | . 6 . . Fabricators . | . . . . Repair Stations 2 | . 2 . . Recycling Units . | . . . . Scanalyzers . | . . . . Garrison Access . | . . . . Terminal Hacks 1 | . 1 . . Branch Access Points 1 | . 1 . . Fabricator Hacks . | . . . . Repair Station Hacks 1 | . 1 . . Scan Component 1 | . 1 . . Recycling Unit Hacks . | . . . . Scanalyzer . | . . . . Garrison Access Hacks . | . . . . Unauthorized Hacks . | . . . . Terminals . | . . . . Fabricators . | . . . . Repair Stations . | . . . . Recycling Units . | . . . . Scanalyzers . | . . . . Garrison Access . | . . . . Data Cores Recovered . | . . . . Used . | . . . . Hacking Detections 1 | . 1 . . Full Trace Events . | . . . . Feedback Events . | . . . . Feedback Blocked . | . . . . Robot Schematics Acquired . | . . . . Robots Built . | . . . . Authchips . | . . . . Time . | . . . . Total Robot Build Rating . | . . . . Part Schematics Acquired . | . . . . Parts Built . | . . . . Authchips . | . . . . Time . | . . . . Total Part Build Rating . | . . . . Part Studies Acquired . | . . . . Parts Repaired . | . . . . Time . | . . . . Parts Recycled . | . . . . Recycled Matter . | . . . . Retrieved Matter . | . . . . Retrieved Components . | . . . . Parts Scanalyzed . | . . . . Part Schematics Acquired . | . . . . Parts Damaged . | . . . . Bothacking | -11 -10 -10 -10 ------------ Run | Yrd Mat Min Exi Used RIF Installer . | . . . . Robots Hacked . | . . . . Non-combat . | . . . . Combat . | . . . . Robot Hacks Applied . | . . . . Relay Couplers Released . | . . . . Fabnet Peak Effective % . | . . . . Robots Rewired . | . . . . Allies Hacked . | . . . . Hacks Repelled . | . . . . Allies | -11 -10 -10 -10 -------- Run | Yrd Mat Min Exi Total Allies . | . . . . Largest Group . | . . . . Highest-Rated Group . | . . . . Highest-Rated Ally . | . . . . Total Orders . | . . . . Ally Attacks . | . . . . Total Damage . | . . . . Kills . | . . . . Allies Corrupted . | . . . . Allies Melted . | . . . . Intel | -11 -10 -10 -10 ------- Run | Yrd Mat Min Exi Active Infowar (turns) 210 | 43 167 . . Sensors 138 | . 138 . . Terrain 72 | 43 29 . . Robot Analysis Total . | . . . . Derelict Logs Recovered 1 | . . 1 . Drone Launches . | . . . . Drone Recoveries . | . . . . Exploration | -11 -10 -10 -10 ------------- Run | Yrd Mat Min Exi Turns Passed 1759 | 147 395 1134 83 Spaces Moved 984 | 55 231 613 85 Core 52 | 15 . . 37 Treads . | . . . . Legs 932 | 40 231 613 48 Wheels . | . . . . Hover . | . . . . Flight . | . . . . Fastest Speed 50 | 50 120 120 50 Average Speed 117 | 122 120 120 90 Slowest Speed 200 | 200 120 120 190 Overloaded Moves . | . . . . Propulsion Burnouts . | . . . . Robots Hopped . | . . . . Potential Cave-ins . | . . . . Cave-ins Triggered . | . . . . Exploration Rate (%) 45 | 7 44 94 37 Regions Visited 3 Branch Regions 2 Pre-discovered Areas 1 | . . 1 . Known Exits Taken 2 | . 1 1 . Unknown Exits Taken 1 | 1 . . . Scrap Searched 1 | . . 1 . Spaces Dug 10 | . 10 . . Terrain Destroyed 17 | . 10 7 . Melee 10 | . 10 . . Projectile . | . . . . AOE 7 | . . 7 . Terrain Rammed . | . . . . Walls Destroyed . | . . . . Machines Disabled . | . . . . Actions | -11 -10 -10 -10 --------- Run | Yrd Mat Min Exi Total 1449 | 102 287 970 90 Wait 349 | 14 12 323 . Move 981 | 54 230 612 85 Hop . | . . . . Pick Up 12 | 6 4 2 . Fast Attach 9 | 8 1 . . Attach . | . . . . Detach 1 | 1 . . . Swap 8 | . 3 5 . Drop 9 | 1 3 4 1 Fire 54 | 18 11 24 1 Melee 22 | . 22 . . Ram . | . . . . Kick 1 | . 1 . . Crush . | . . . . Escape Stasis . | . . . . Rewire 3 | . . . 3 Trap . | . . . . Miscellaneous . | . . . . Route ------- -11/Scrapyard -10/Materials (discovered 3 exits: *Mat / *Min x2) -10/Mines (discovered 3 exits: *Mat / *Exi / *Sub) -10/Exiles History --------- Turn | Location | Event 24 | -11/Scrapyard | Discovered new exit (range 14) 148 | -11/Scrapyard | Entered Materials 304 | -10/Materials | Build established: Mutant 466 | -10/Materials | Discovered new exit (range 4) 470 | -10/Materials | Identified exit to Materials 533 | -10/Materials | Identified exit to Mines 543 | -10/Materials | Entered Mines 694 | -10/Mines | Discovered new exit (range 5) 709 | -10/Mines | Identified exit to Subcaves 746 | -10/Mines | Found a Scrap Suit stashed away for nefarious purposes 855 | -10/Mines | Discovered exit to Materials (range 9) 879 | -10/Mines | YI-UF0 nonchalantly dropped a Grenade Launcher on the ground 1546 | -10/Mines | Learned location of Storage (-7) 1671 | -10/Mines | Deemed a non-threat by the Exiles lab entrance 1672 | -10/Mines | Discovered new exit (range 5) 1675 | -10/Mines | Identified exit to Exiles 1677 | -10/Mines | Entered Exiles 1706 | -10/Exiles | Met 8R-AWN 1727 | -10/Exiles | Met EX-HEX 1738 | -10/Exiles | Attacked by the Exiles 1753 | -10/Exiles | Core integrity fell below 50% 1759 | -10/Exiles | Core integrity fell below 20% 1760 | -10/Exiles | Destroyed by DAS Turret with DAS Cannon Last Messages --------------- the gates are defenses set up by Warlord... Nope, the Imprinter put them there mostly to keep us out! Anyway, I've got to get back to poking and prodding these nasty little guys. Go see BIN. I can't imagine you'll want to stay in our boring little cave for long, and we could use some help with the project in the back. 01734_ as-14267 cannot be rewired. 01738_ EXILES: Hostile robot within lab perimeter. Defensive protocols time, folks! 01739_ Penetrated by HV Slug. 01739_ Critical hit (Destroy). 01739_ Assault Rifle destroyed. 01739_ HV Slug penetrates as-14267. 01739_ HV Slug penetrates Wall. 01740_ Lgt. Nuclear Core destroyed. 01741_ Lgt. Assault Rifle severed. 01742_ Dropped Sml. Storage Unit. 01746_ Aluminum Leg destroyed. Map ----- +----------------------------------------------------+ | ?????????????????????????????????????????????????? | | ?????????????????????????????????????????????????? | | ?????????????????????????????????????????????????? | | ?????????????????????????????????????????????????? | | ?????????????????????????????????????????????????? | | ?????????????????????????????????????????????????? | | ?????????????????????????????????????????????????? | | ?????????????????????????????????????????????????? | | ?????????????????????????????????????????????????? | | ?????????????????????????????????????????????????? | | ?????????????????????????????????????????????????? | | ?????????????????????????????????????????????????? | | ??????????????????????##?????????????????????????? | | ?????????????????????? ?????????????????????????? | | ??????????????????????" ?????????????????????????? | | ?????????????????????"" ?????????????? ??????? | | ?????????????????????"" ?????????????" ??????? | | ?????????????????????"" ????????????" ??????? | | ????????????????????? ???????????#" ??????? | | ??????????????????????" ??????????##" #??????? | | ??????????????????????# ??????????#"" #??????? | | ????????????????????#?# ###?######"" #??????? | | ??????????? """#####X# #"###""""""" ##?????? | | ?????????? """""" " "" ##???## | | ?????????? % "" """ " #####" | | ?????????? @ " " " | | ?????????? % | | ???????????# | | ???????????## | | ????????????## aa a | | ?????????????##" % | | ??????????????#""" """""" | | ??????????????#" ######""" | | ???????????????" ""##????#####""" | | ???????????????"" """##?????????##""" | | ???????????????" """##???????????#"""" | | ???????????????" ""#????????????#"" | | ??????????????? #?????????????"""" | | ???????????????? ?????????????" | | ?????????????????? ???????????? | | ???????????????????? ????????????? | | ??????????????????????? ?????????????? | | ????????????????????????? ?????????????? | | ????????????????????????????????????????? "" | | ???????????????????????????????????????????"" " " | | ????????????????????????????????????????????##""" | | ???????????????????????????????????????????????#"" | | ???????????????????????????????????????????????##? | | ?????????????????????????????????????????????????? | | ?????????????????????????????????????????????????? | +----------------------------------------------------+ Best States ------------- Heat Dissipation 25 Energy Generation 14 Energy Capacity 160 Matter Stores 300 Matter Capacity 300 Sight Range 16 Robot Scan Range 14 Terrain Scan Range 16 Terrain Scan Density 10 Evasion (%) 55 Item Schematics ----------------- None Robot Schematics ------------------ None Fabricated ------------ Nothing Repaired ---------- Nothing Studied --------- None Alien Tech Used ----------------- None Achievements -------------- None Challenges ------------ None Game ------ Seed DiametricPhasingAxe Manual? 0 Play Time 00:12:26 Cumulative 66.8 hours Start 2026.01.31 @ 10:51:12 End 2026.01.31 @ 11:02:19 Sessions 1 Manual Loads 0 Difficulty Rogue Special Mode None Game No. 46 Rogue 42 Adventurer 4 Explorer 0 Win Type - Total 1 Types 1/0/0/0/0/0/0/0/0/0 Lore% 38 Gallery% 39 Achievement% 31 Wizard Run 0 Options --------- Layout 1 ASCII 0 Keyboard 1 Movement Vi Keybinds 0 Fullscreen 0 Font 20/SmallcapsGlow Map View 50x35 Zoom Use 0% Tactical HUD 1 Map Filters NONE Filters NONE Steam 1 RUN: 061e32e7-4048-4650-b803-9ae834ea5ec7